Cogmind - Beta 10.1 @@@ ROGUE MODE // 2020.10.06 @ 16:55:18 Player: BOTHUNTER Result: Destroyed by G-34 Mercenary with Small Laser Performance ------------- Evolutions (1) 500 Regions Visited (3) 600 Robots Destroyed (82) 410 Value Destroyed (2246) 2246 Prototype IDs (1) 20 Alien Tech Used (0) 0 Bonus (535) 535 TOTAL SCORE: 4311 Bonus ------- High Alert Combat Kills 359 Follower Combat Kills 292 Friendly Fire -116 Cogmind --------- Core Integrity 0/400 Matter 300/300 Energy 265/265 System Corruption 0% Temperature Cool (6) Movement Walking (150) Ox1 Location -9/Storage Parts ------- > --- POWER (1) -------- Improved Ion Engine > --- PROPULSION (2) --- Aluminum Leg Aluminum Leg > --- UTILITY (2) ------ Medium Storage Unit Core Shielding > --- WEAPON (4) ------- Improved Assault Rifle Improved Assault Rifle Improved Assault Rifle Hammer > --- INVENTORY (8) ---- Small Matter Pod (50) Transmission Jammer Hacking Suite Improved Assault Rifle Improved Assault Rifle Peak State ------------ > --- POWER ------------ Improved Ion Engine > --- PROPULSION ------- Aluminum Leg Aluminum Leg > --- UTILITY ---------- Medium Storage Unit Transmission Jammer > --- WEAPON ----------- Improved Assault Rifle Improved Assault Rifle Improved Assault Rifle Improved Assault Rifle > --- INVENTORY -------- Small Matter Pod Transmission Jammer Hacking Suite Improved Assault Rifle Improved Assault Rifle [Rating: 21] Favorites ----------- Power Light Nuclear Core Engine Light Ion Engine Power Core Light Nuclear Core Propulsion Aluminum Leg Treads Light Treads Leg Aluminum Leg Wheel Armored Wheel Utility Medium Storage Unit Device Transmission Jammer Storage Medium Storage Unit Protection Utility Shielding Weapon Improved Assault Rifle Energy Gun Small Laser Ballistic Gun Improved Assault Rifle Launcher Grenade Launcher Special Weapon Mining Laser Impact Weapon Hammer Build | -11 -10 -9 -9 ------- Run | Scr Mat Mat Sto Slots Evolved 2 | . . 2 . Power . | . . . . Propulsion . | . . . . Utility . | . . . . Weapon 2 | . . 2 . Parts Attached 52 | 6 10 25 11 Power 4 | 1 1 1 1 Engine 3 | 1 . 1 1 Core 1 | . 1 . . Reactor . | . . . . Propulsion 13 | 2 2 7 2 Treads 1 | . . 1 . Leg 10 | 2 2 4 2 Wheel 2 | . . 2 . Hover . | . . . . Flight . | . . . . Utility 8 | 1 2 3 2 Device 1 | . . . 1 Storage 2 | 1 1 . . Processor . | . . . . Hackware . | . . . . Protection 5 | . 1 3 1 Artifact . | . . . . Weapon 27 | 2 5 14 6 Energy Gun 3 | . 1 1 1 Energy Cannon . | . . . . Ballistic Gun 19 | 2 1 12 4 Ballistic Cannon . | . . . . Launcher 2 | . 2 . . Special Weapon 2 | . 1 1 . Impact Weapon 1 | . . . 1 Slashing Weapon . | . . . . Piercing Weapon . | . . . . Special Melee Weapon . | . . . . Unidentified Prototypes 1 | . . 1 . Parts Lost 17 | . 2 12 3 Power 2 | . 1 1 . Propulsion 4 | . . 2 2 Utility 3 | . . 2 1 Weapon 8 | . 1 7 . Highest Loss Streak 5 | . 1 5 3 Average Slot Usage (%) 87 | . 86 87 88 Engine 3 | . 1 5 3 Core 3 | . 11 . . Leg 21 | . 28 17 20 Wheel 1 | . . 3 . Device 2 | . . . 9 Storage 11 | . 14 11 11 Protection 5 | . 2 9 . Energy Gun 1 | . 3 . 2 Ballistic Gun 30 | . 6 38 40 Launcher 3 | . 14 . . Naked Turns . | . . . . Heaviest Build 28 | 12 19 26 28 Greatest Support 20 | 20 20 20 20 Greatest Overweight (x) 8 | . . 2 8 Average Overweight (x) . | . . . . Largest Inventory Capacity 10 | 6 10 8 8 Average Capacity 7 | 5 7 8 8 Most Carried 8 | 4 8 8 6 Average Carried 6 | 2 6 7 5 Final Capacity 8 | 6 8 8 8 Final Carried 8 | 4 8 5 5 Class Distribution -------------------- 35% | Mutant 31% | Tank 18% | Gunner 8% | Commander-Gunner 4% | Bomber Dominant Class ---------------- Mutant | -10/Materials Tank | -9/Materials Gunner | -9/Storage Resources | -11 -10 -9 -9 ----------- Run | Scr Mat Mat Sto Matter Collected 2520 | 182 241 1435 662 Remotely . | . . . . Salvage Created 2811 | . 294 1610 907 Parts 186 | . 25 116 45 Haulers Intercepted 6 | . 1 2 3 Recyclers Shooed 1 | . 1 . . Parts Field Recycled . | . . . . Retrieved Matter . | . . . . Parts Self-Destructed . | . . . . Prevented . | . . . . Kills | -11 -10 -9 -9 ------- Run | Scr Mat Mat Sto Combat Hostiles Destroyed 65 | . 12 40 13 Guns 56 | . 3 40 13 AOE 9 | . 9 . . Classes Destroyed 10 | . 4 4 2 Worker 2 | . 1 1 . Hauler 6 | . 1 2 3 Recycler 1 | . . . 1 Operator 4 | . . 2 2 Watcher 3 | . . 2 1 Swarmer 15 | . 3 12 . Grunt 39 | . 9 20 10 Brawler 2 | . . 1 1 Duelist 1 | . . . 1 Sentry 9 | . . 7 2 Best Kill Streak 11 | . 6 11 9 Combat Bots Only 10 | . 4 10 7 Max Kills in Single Turn 3 | . 3 2 2 Gunslinging 1 | . . 1 1 Exploded 2 | . 2 . . Melee . | . . . . Uniques/NPCs Destroyed . | . . . . Combat | -11 -10 -9 -9 -------- Run | Scr Mat Mat Sto Damage Taken 2999 | . 357 1756 886 Core 469 | . 61 248 160 Absorbed by Shields . | . . . . Core Remaining (%) 87 | 100 75 . . Volleys Fired 189 | . 34 104 51 Largest 4 | . 2 4 4 Hottest 134 | . 100 92 134 Shots Fired 591 | . 54 343 194 Gun 571 | . 34 343 194 Cannon . | . . . . Launcher 19 | . 19 . . Special 1 | . 1 . . Kinetic 554 | . 22 343 189 Thermal 18 | . 13 . 5 Explosive 19 | . 19 . . Electromagnetic . | . . . . Robot Hit Streak 21 | . 8 14 21 Robot Miss Streak 6 | . 6 5 6 Penetration Max . | . . . . Secondary Targets 14 | . . 8 6 Max Gunslinging Chain 1 | . . 1 1 Shots Hit Robots 344 | . 26 195 123 Core Hits 128 | . 24 72 32 Critical Hits 5 | . . 4 1 Critical Kills 2 | . . 2 . Critical Parts Destroyed 2 | . . 1 1 Melee Attacks . | . . . . Impact . | . . . . Slashing . | . . . . Piercing . | . . . . Sneak Attacks . | . . . . Combat Hostiles . | . . . . Follow-up Attacks . | . . . . Damage Inflicted 5239 | . 1032 2587 1620 Guns 4456 | . 249 2587 1620 Cannons . | . . . . Explosions 757 | . 757 . . Melee . | . . . . Ramming . | . . . . Kinetic 4334 | . 147 2587 1600 Thermal 148 | . 128 . 20 Explosive 757 | . 757 . . Electromagnetic . | . . . . Impact . | . . . . Slashing . | . . . . Piercing . | . . . . Highest Corruption . | . . . . Average Corruption . | . . . . Corruption Purged . | . . . . Overload Shots . | . . . . Overflow Damage 14 | . 14 . . Projectiles . | . . . . Explosions 14 | . 14 . . Melee . | . . . . Knockbacks . | . . . . Impact . | . . . . Kinetic . | . . . . Secondary . | . . . . Self-Inflicted Damage 56 | . 56 . . Shots 2 | . 2 . . Rammed . | . . . . Targets Rammed . | . . . . Kicked . | . . . . Crushed . | . . . . Highest Temperature 360 | . 73 258 360 Average Temperature 57 | . 20 48 83 Received Heat Transfer 954 | . 138 507 309 Effects 3 | . . . 3 Energy Bleed 1 | . . . 1 Matter Decay 1 | . . . 1 Short Circuit 1 | . . . 1 Siege Activations . | . . . . Robots Corrupted . | . . . . Combat Hostiles . | . . . . Parts Fried . | . . . . Impact Corruptions . | . . . . Robots Melted . | . . . . Combat Hostiles . | . . . . Parts Melted . | . . . . Heat Transferred 300 | . 275 . 25 Parts Sabotaged . | . . . . Parts Stolen . | . . . . Parts Stripped . | . . . . Power Chain Reactions . | . . . . Missiles Intercepted . | . . . . Alert | -11 -10 -9 -9 ------- Run | Scr Mat Mat Sto Peak Influence 782 | . 215 778 782 Initial 324 | . . 44 324 Average 357 | . 79 421 540 Maximum Alert Level 3 | . 1 3 3 Low Security (%) 33 | 100 94 16 . Level 1 25 | . 5 37 26 Level 2 31 | . . 36 55 Level 3 9 | . . 9 18 Level 4 . | . . . . Level 5 . | . . . . High Security . | . . . . Max Security . | . . . . Squads Dispatched 12 | . 5 3 4 Investigation 8 | . 4 2 2 Extermination . | . . . . Reinforcement 4 | . 1 1 2 Assault . | . . . . Garrison . | . . . . Intercept . | . . . . Construction Impeded . | . . . . Haulers Reinforced . | . . . . Stealth | -11 -10 -9 -9 --------- Run | Scr Mat Mat Sto Distress Signals 8 | . 1 2 5 Communications Jammed 31 | . . . 31 Distress Signals 31 | . . . 31 Times Spotted 104 | . 20 53 31 Peak Tracking Total 5 | . 4 5 5 Tactical Retreats 9 | . 2 5 2 Traps | -11 -10 -9 -9 ------- Run | Scr Mat Mat Sto Traps Triggered 2 | . 1 1 . Indirectly . | . . . . Trap Hack Attempts . | . . . . Triggered . | . . . . Disarmed . | . . . . Reprogrammed . | . . . . Reused . | . . . . Traps Extracted . | . . . . Installed . | . . . . Triggered . | . . . . Machines | -11 -10 -9 -9 ---------- Run | Scr Mat Mat Sto Machines Disabled 9 | . 4 3 2 Max in Single Turn 1 | . 1 1 1 Machines Sabotaged . | . . . . Garrisons Compromised . | . . . . Overloaded Fab Kills . | . . . . Fab Network Shutdowns . | . . . . Hacking | -11 -10 -9 -9 --------- Run | Scr Mat Mat Sto Machines Accessed 19 | . 7 4 8 Terminals 16 | . 6 3 7 Fabricators . | . . . . Repair Stations . | . . . . Recycling Units 2 | . 1 . 1 Scanalyzers 1 | . . 1 . Garrison Access . | . . . . Total Hacks 64 | . 29 11 24 Successful 34 | . 14 8 12 Failed 30 | . 15 3 12 Catastrophic 6 | . 4 . 2 Database Lockouts . | . . . . Manual 42 | . 20 7 15 Terminals 54 | . 26 8 20 Fabricators . | . . . . Repair Stations . | . . . . Recycling Units 7 | . 3 . 4 Scanalyzers 3 | . . 3 . Garrison Access . | . . . . Terminal Hacks 15 | . 9 3 3 Part Schematic 3 | . 2 . 1 Robot Analysis 5 | . 3 2 . Scanalyzer Index 1 | . . 1 . Unreport Threat 3 | . 3 . . Locate Traps 1 | . . . 1 Recall Investigation 1 | . 1 . . Hauler Manifests 1 | . . . 1 Fabricator Hacks . | . . . . Repair Station Hacks . | . . . . Recycling Unit Hacks 3 | . 1 . 2 Report Inventory 2 | . 1 . 1 Retrieve Components 1 | . . . 1 Scanalyzer 2 | . . 2 . Insert Component 1 | . . 1 . Analyze 1 | . . 1 . Garrison Access Hacks . | . . . . Unauthorized Hacks 14 | . 4 3 7 Terminals 13 | . 3 3 7 Track 4 | . . 1 3 Botnet 9 | . 3 2 4 Fabricators . | . . . . Repair Stations . | . . . . Recycling Units 1 | . 1 . . Tunnel 1 | . 1 . . Scanalyzers . | . . . . Garrison Access . | . . . . Data Cores Recovered 2 | . . 2 . Used . | . . . . Hacking Detections 17 | . 6 4 7 Full Trace Events 11 | . 5 2 4 Feedback Events . | . . . . Feedback Blocked . | . . . . Robot Schematics Acquired . | . . . . Robots Built . | . . . . Matter . | . . . . Time . | . . . . Total Robot Build Rating . | . . . . Part Schematics Acquired 4 | . 2 1 1 Parts Built . | . . . . Matter . | . . . . Time . | . . . . Total Part Build Rating . | . . . . Parts Repaired . | . . . . Time . | . . . . Parts Recycled . | . . . . Recycled Matter . | . . . . Retrieved Matter . | . . . . Retrieved Components 7 | . . . 7 Parts Scanalyzed 1 | . . 1 . Part Schematics Acquired 1 | . . 1 . Parts Damaged . | . . . . Bothacking | -11 -10 -9 -9 ------------ Run | Scr Mat Mat Sto Used RIF Installer . | . . . . Robots Hacked . | . . . . Non-combat . | . . . . Combat . | . . . . Robot Hacks Applied . | . . . . Relay Couplers Released . | . . . . Robots Rewired . | . . . . Allies Hacked . | . . . . Hacks Repelled . | . . . . Allies | -11 -10 -9 -9 -------- Run | Scr Mat Mat Sto Total Allies 10 | . . . 10 Largest Group 10 | . . . 10 Highest-Rated Group 88 | . . . 88 Highest-Rated Ally 16 | . . . 16 Total Orders . | . . . . Ally Attacks 100 | . . . 100 Total Damage 967 | . . . 967 Kills 13 | . . . 13 Allies Corrupted . | . . . . Allies Melted 1 | . . . 1 Intel | -11 -10 -9 -9 ------- Run | Scr Mat Mat Sto Robot Analysis Total 5 | . 3 2 . Derelict Logs Recovered . | . . . . Drone Launches . | . . . . Drone Recoveries . | . . . . Exploration | -11 -10 -9 -9 ------------- Run | Scr Mat Mat Sto Turns Passed 2603 | 57 683 1096 767 Spaces Moved 1382 | 45 460 537 340 Core 17 | 13 . . 4 Treads . | . . . . Legs 1192 | 32 460 364 336 Wheels 173 | . . 173 . Hover . | . . . . Flight . | . . . . Fastest Speed 50 | 50 120 90 120 Average Speed 129 | 99 120 125 150 Slowest Speed 450 | 120 120 150 450 Overloaded Moves . | . . . . Propulsion Burnouts . | . . . . Robots Hopped . | . . . . Cave-ins Triggered . | . . . . Exploration Rate (%) 46 | 4 79 51 53 Regions Visited 3 Branch Regions 1 Pre-discovered Areas 1 | . 1 . . Known Exits Taken . | . . . . Unknown Exits Taken 3 | 1 1 1 . Scrap Searched . | . . . . Spaces Dug . | . . . . Terrain Destroyed 100 | . 100 . . Melee . | . . . . Projectile . | . . . . AOE 100 | . 100 . . Terrain Rammed . | . . . . Walls Destroyed . | . . . . Machines Disabled . | . . . . Actions | -11 -10 -9 -9 --------- Run | Scr Mat Mat Sto Total 1783 | 54 535 724 470 Wait 117 | . 20 39 58 Move 1379 | 44 459 536 340 Hop . | . . . . Pick Up 17 | 4 5 5 3 Fast Attach 32 | 6 5 14 7 Attach 12 | . 2 7 3 Detach 3 | . 1 1 1 Swap 8 | . 3 4 1 Drop 25 | . 6 14 5 Fire 189 | . 34 104 51 Melee . | . . . . Ram . | . . . . Kick . | . . . . Crush . | . . . . Escape Stasis . | . . . . Rewire 1 | . . . 1 Trap . | . . . . Miscellaneous . | . . . . Route ------- -11/Scrapyard -10/Materials (discovered 3 exits: *Mat x2 / [*Min]) -9/Materials (discovered 3 exits: [*Mat] / [*Min] / *Sto) -9/Storage History --------- Turn | Location | Event 4 | -11/Scrapyard | Discovered new exit (range 15) 58 | -11/Scrapyard | Entered Materials 241 | -10/Materials | Discovered new exit (range 10) 316 | -10/Materials | Build established: Mutant 536 | -10/Materials | Discovered new exit (range 15) 693 | -10/Materials | Discovered new exit (range 15) 741 | -10/Materials | Entered another Materials area 741 | -9/Materials | Evolved 2 slots: Weapon x2 1006 | -9/Materials | Discovered new exit (range 16) 1011 | -9/Materials | Lost 5 parts (2n3w) 1015 | -9/Materials | Destroyed 10 combat bots 1339 | -9/Materials | Build established: Tank 1522 | -9/Materials | Discovered new exit (range 9) 1629 | -9/Materials | Discovered new exit (range 15) 1762 | -9/Materials | Core integrity fell below 50% 1820 | -9/Materials | Lost 4 parts (1u3w) 1837 | -9/Materials | Entered Storage 2013 | -9/Storage | Assisted by bots powering up and referring to "LRC-V3" 2501 | -9/Storage | Core integrity fell below 20% 2551 | -9/Storage | Lost 3 parts (2n1u) 2559 | -9/Storage | Destroyed 7 combat bots 2604 | -9/Storage | Destroyed by G-34 Mercenary with Small Laser Last Messages --------------- >>Trojan(Botnet) Trojan loaded successfully. Testing... Terminal linked with 3 systems. Awaiting botnet instructions. >>Manifests Retrieving manifest data... Found 3 haulers: A-02 Transporter 5x Lrg. Battery A-02 Transporter 1x Particle Cannon 1x Field Recycling Unit 3x Power Shielding A-02 Transporter 3x Imp. Assault Rifle 02595_ ALERT: Suspicious activity at Terminal S002. Dispatching Investigation squad. 02595_ R-06 Scavenger collects Lgt. Treads. 02596_ U-05 Engineer lays Concrete. Map ----- +----------------------------------------------------+ | | | | | | | | | | | | | | | | | | | | | | | ??????????????????????????????????????????? | | ??????????????????????????????????????????? | | ??????????????????????????????????????????? | | ?????????????????????????????????????????## | | ??????????????????###????????????????????#" | | ??????????????????# ??????????????????###" | | ??????????????????# #??????????????????# | | ??????????????##### ###########+######## | | ???????????#### #^ T # # | | ???????????k "%g # ^ # # ! | | ??????????????#r #^ !# """ """ # = | | ???????????????# u * # """ """*+ = | | ???????????????# u = %* # """ """=# | | ??????????????## % %%= # # | | ??????????????#T @ u ! % # # % | | ??????????????## # =#%# # % | | ???????????????+ [#"" #!########+##% | | ???????????????# ##### | | ???????????????# #######???#### ###"T | | ???????????????# ?????????????#+##+##+###" | | ???????????????# ?????????????# #### | | ???????????????#??????????????# # | | ?????????????### ##############% % + | | ??????????? * # ##+# | | ??????????? %%! * % % + ## | | ??????????? !=%=%% % # ##"" | | ??????????????#+############# # ##"R | | ????????????????????????????# # ##"" | | ????????????????????????????# # ## | | ????????????????????????????# ########### | | ????????????????????????????# #?????????# | | ????????????????????????????#%#?????????# | | ????????????????????????????# #?????????# " | | ????????????????????????????+ #?????????# " | | ????????????????????????????# ?????????+ | | ????????????????????????????? #????????#### | | ????????????????????????????? ????????????? | | ?????????????????????????????"????????????? | | ?????????????????????????????%????????????? | +----------------------------------------------------+ Best States ------------- Heat Dissipation 28 Energy Generation 14 Energy Capacity 265 Matter Stores 300 Matter Capacity 300 Sight Range 16 Terrain Scan Density 10 Jamming Range 8 Armor Coverage 150 Core Shielding 20 Utility Shielding 33 Evasion (%) 50 Recoil Reduction 1 Item Schematics ----------------- Weapon Shielding | -10/Materials | Hacked Lgt. Armor Plating | -10/Materials | Hacked Imp. Assault Rifle | -9/Materials | Scanalyzed Carbon-fiber Leg | -9/Storage | Hacked Robot Schematics ------------------ None Fabricated ------------ Nothing Alien Tech Used ----------------- None Achievements -------------- None Challenges ------------ None Game ------ Seed CloakingSwarmRailgun Manual? 0 Play Time 00:34:10 Cumulative 112.5 hours Start 2020.10.06 @ 16:19:51 End 2020.10.06 @ 16:55:18 Sessions 1 Manual Loads 0 Difficulty Rogue Special Mode None Game No. 169 Rogue 145 Adventurer 22 Explorer 2 Win Type - Total 1 Types 1/0/0/0/0/0/0/0/0 Lore% 49 Gallery% 53 Achievement% 43 Wizard Run 0 Options --------- ASCII 0 Keyboard 0 Movement Numpad Keybinds 0 Fullscreen 1 Font 14/SmallcapsGlow Map View 84x54 Tactical HUD 1 Map Filters NONE Filters NONE Steam 1 RUN: c52a5a9e-cc7f-4514-bdd7-e5854b29f88a